{"text_format":"1","workbook":"xlsx","n_sheets":4,"sheets":["PAGE 1","PAGE 2","PAGE 3","PAGE 4"],"not_rendered":{"charts":0,"images":1,"macros":1,"external_links":0,"defined_names":0,"comments":0,"pivot_tables":0},"unopened":[],"bounds":{"document_bytes":16777216,"sheet_cells":100000,"rows_first":2000,"rows_last":500,"rows_between":2000,"halvings":0,"cell_chars":16384,"cell_head_chars":4096},"cells_cut":0,"cells_raw":0,"read":"whole","date_system":"1900"}

{"sheet":"PAGE 1","index":0,"n_rows":55,"n_cols":8,"rows_kept":55,"cut":false,"hidden":false,"merged":[[0,0,0,4],[1,0,1,4],[2,0,2,4],[4,0,4,4],[3,0,3,4]]}
["AMITE COUNTY SCHOOL DISTRICT"]
["IN-DISTRICT TRAVEL EXPENSE IN PERSONAL VEHICLE (PAGE 1)"]
["(DO NOT USE THIS FORM FOR TRAVEL OUTSIDE OF THE DISTRICT. YOU MUST FILL OUT A \"BEFORE\" FORM)"]
["Please refer to the district mileage chart for the correct mileage information"]
["Revised 01/01/2021"]
["EMPLOYEE'S NAME:",null,"MONTH OF TRAVEL:"]
[]
["DATE OF TRAVEL","STARTING POINT","DESTINATION","PURPOSE OF TRIP","SCHOOL BUSINESS MILES TRAVELED (Round Trip)"]
[null,null,null,null,{"$f":"IF(AND(B9=\"CENTRAL OFFICE\",C9=\"ACHS/VOTECH\"),2,IF(AND(B9=\"CENTRAL OFFICE\",C9=\"ACES\"),4,IF(AND(B9=\"CENTRAL OFFICE\",C9=\"BUS LOT\"),3,IF(AND(B9=\"CENTRAL OFFICE\",C9=\"POST OFFICE\"),2,IF(AND(B9=\"CENTRAL OFFICE\",C9=\"BANK\"),2,IF(AND(B9=\"ACHS/VOTECH\",C9=\"CENTRAL OFFICE\"),2,IF(AND(B9=\"ACHS/VOTECH\",C9=\"ACES\"),4,IF(AND(B9=\"ACHS/VOTECH\",C9=\"BUS LOT\"),\"NOT AVALIABLE\",IF(AND(B9=\"ACHS/VOTECH\",C9=\"POST OFFICE\"),2,IF(AND(B9=\"ACHS/VOTECH\",C9=\"BANK\"),2,IF(AND(B9=\"ACES\",C9=\"CENTRAL OFFICE\"),4,IF(AND(B9=\"ACES\",C9=\"ACHS/VOTECH\"),4,IF(AND(B9=\"ACES\",C9=\"BUS LOT\"),\"NOT AVAILABLE\",IF(AND(B9=\"ACES\",C9=\"POST OFFICE\"),4,IF(AND(B9=\"ACES\",C9=\"BANK\"),4,IF(AND(B9=\"BUS LOT\",C9=\"CENTRAL OFFICE\"),4,IF(AND(B9=\"BUS LOT\",C9=\"ACHS/VOTECH\"),\"NOT AVAILABLE\",IF(AND(B9=\"BUS LOT\",C9=\"ACES\"),\"NOT AVAILABLE\",IF(AND(B9=\"BUS LOT\",C9=\"POST OFFICE\"),\"NOT AVAILABLE\",IF(AND(B9=\"BUS LOT\",C9=\"BANK\"),\"NOT AVAILABLE\",IF(AND(B9=\"POST OFFICE\",C9=\"CENTRAL OFFICE\"),2,IF(AND(B9=\"POST OFFICE\",C9=\"ACHS/VOTECH\"),2,IF(AND(B9=\"POST OFFICE\",C9=\"ACES\"),4,IF(AND(B9=\"POST OFFICE\",C9=\"BUS LOT\"),\"NOT AVAILABLE\",IF(AND(B9=\"POST OFFICE\",C9=\"BANK\"),\"NOT AVAILABLE\",IF(AND(B9=\"BANK\",C9=\"ACHS/VOTECH\"),1,IF(AND(B9=\"BANK\",C9=\"ACES\"),4,IF(AND(B9=\"BANK\",C9=\"BUS LOT\"),\"NOT AVAILABLE\",IF(AND(B9=\"BANK\",C9=\"POST OFFICE\"),\"NOT AVAILABLE\",IF(AND(B9=\"\",C9=\"\"),\"\",IF(B9=C9,0)))))))))))))))))))))))))))))))","v":""},null,null,"CENTRAL OFFICE"]
[null,null,null,null,{"$f":"IF(AND(B10=\"CENTRAL OFFICE\",C10=\"ACHS/VOTECH\"),2,IF(AND(B10=\"CENTRAL OFFICE\",C10=\"ACES\"),4,IF(AND(B10=\"CENTRAL OFFICE\",C10=\"BUS LOT\"),3,IF(AND(B10=\"CENTRAL OFFICE\",C10=\"POST OFFICE\"),2,IF(AND(B10=\"CENTRAL OFFICE\",C10=\"BANK\"),2,IF(AND(B10=\"ACHS/VOTECH\",C10=\"CENTRAL OFFICE\"),2,IF(AND(B10=\"ACHS/VOTECH\",C10=\"ACES\"),4,IF(AND(B10=\"ACHS/VOTECH\",C10=\"BUS LOT\"),\"NOT AVALIABLE\",IF(AND(B10=\"ACHS/VOTECH\",C10=\"POST OFFICE\"),2,IF(AND(B10=\"ACHS/VOTECH\",C10=\"BANK\"),2,IF(AND(B10=\"ACES\",C10=\"CENTRAL OFFICE\"),4,IF(AND(B10=\"ACES\",C10=\"ACHS/VOTECH\"),4,IF(AND(B10=\"ACES\",C10=\"BUS LOT\"),\"NOT AVAILABLE\",IF(AND(B10=\"ACES\",C10=\"POST OFFICE\"),4,IF(AND(B10=\"ACES\",C10=\"BANK\"),4,IF(AND(B10=\"BUS LOT\",C10=\"CENTRAL OFFICE\"),4,IF(AND(B10=\"BUS LOT\",C10=\"ACHS/VOTECH\"),\"NOT AVAILABLE\",IF(AND(B10=\"BUS LOT\",C10=\"ACES\"),\"NOT AVAILABLE\",IF(AND(B10=\"BUS LOT\",C10=\"POST OFFICE\"),\"NOT AVAILABLE\",IF(AND(B10=\"BUS LOT\",C10=\"BANK\"),\"NOT AVAILABLE\",IF(AND(B10=\"POST OFFICE\",C10=\"CENTRAL OFFICE\"),2,IF(AND(B10=\"POST OFFICE\",C10=\"ACHS/VOTECH\"),2,IF(AND(B10=\"POST OFFICE\",C10=\"ACES\"),4,IF(AND(B10=\"POST OFFICE\",C10=\"BUS LOT\"),\"NOT AVAILABLE\",IF(AND(B10=\"POST OFFICE\",C10=\"BANK\"),\"NOT AVAILABLE\",IF(AND(B10=\"BANK\",C10=\"ACHS/VOTECH\"),1,IF(AND(B10=\"BANK\",C10=\"ACES\"),4,IF(AND(B10=\"BANK\",C10=\"BUS LOT\"),\"NOT AVAILABLE\",IF(AND(B10=\"BANK\",C10=\"POST OFFICE\"),\"NOT AVAILABLE\",IF(AND(B10=\"\",C10=\"\"),\"\",IF(B10=C10,0)))))))))))))))))))))))))))))))","v":""},null,null,"ACHS/VOTECH"]
[null,null,null,null,{"$f":"IF(AND(B11=\"CENTRAL OFFICE\",C11=\"ACHS/VOTECH\"),2,IF(AND(B11=\"CENTRAL OFFICE\",C11=\"ACES\"),4,IF(AND(B11=\"CENTRAL OFFICE\",C11=\"BUS LOT\"),3,IF(AND(B11=\"CENTRAL OFFICE\",C11=\"POST OFFICE\"),2,IF(AND(B11=\"CENTRAL OFFICE\",C11=\"BANK\"),2,IF(AND(B11=\"ACHS/VOTECH\",C11=\"CENTRAL OFFICE\"),2,IF(AND(B11=\"ACHS/VOTECH\",C11=\"ACES\"),4,IF(AND(B11=\"ACHS/VOTECH\",C11=\"BUS LOT\"),\"NOT AVALIABLE\",IF(AND(B11=\"ACHS/VOTECH\",C11=\"POST OFFICE\"),2,IF(AND(B11=\"ACHS/VOTECH\",C11=\"BANK\"),2,IF(AND(B11=\"ACES\",C11=\"CENTRAL OFFICE\"),4,IF(AND(B11=\"ACES\",C11=\"ACHS/VOTECH\"),4,IF(AND(B11=\"ACES\",C11=\"BUS LOT\"),\"NOT AVAILABLE\",IF(AND(B11=\"ACES\",C11=\"POST OFFICE\"),4,IF(AND(B11=\"ACES\",C11=\"BANK\"),4,IF(AND(B11=\"BUS LOT\",C11=\"CENTRAL OFFICE\"),4,IF(AND(B11=\"BUS LOT\",C11=\"ACHS/VOTECH\"),\"NOT AVAILABLE\",IF(AND(B11=\"BUS LOT\",C11=\"ACES\"),\"NOT AVAILABLE\",IF(AND(B11=\"BUS LOT\",C11=\"POST OFFICE\"),\"NOT AVAILABLE\",IF(AND(B11=\"BUS LOT\",C11=\"BANK\"),\"NOT AVAILABLE\",IF(AND(B11=\"POST OFFICE\",C11=\"CENTRAL OFFICE\"),2,IF(AND(B11=\"POST OFFICE\",C11=\"ACHS/VOTECH\"),2,IF(AND(B11=\"POST OFFICE\",C11=\"ACES\"),4,IF(AND(B11=\"POST OFFICE\",C11=\"BUS LOT\"),\"NOT AVAILABLE\",IF(AND(B11=\"POST OFFICE\",C11=\"BANK\"),\"NOT AVAILABLE\",IF(AND(B11=\"BANK\",C11=\"ACHS/VOTECH\"),1,IF(AND(B11=\"BANK\",C11=\"ACES\"),4,IF(AND(B11=\"BANK\",C11=\"BUS LOT\"),\"NOT AVAILABLE\",IF(AND(B11=\"BANK\",C11=\"POST OFFICE\"),\"NOT AVAILABLE\",IF(AND(B11=\"\",C11=\"\"),\"\",IF(B11=C11,0)))))))))))))))))))))))))))))))","v":""},null,null,"ACES"]
[null,null,null,null,"",null,null,"BUS LOT"]
[null,null,null,null,"",null,null,"POST OFFICE"]
[null,null,null,null,"",null,null,"BANK"]
[null,null,null,null,""]
[null,null,null,null,""]
[null,null,null,null,""]
[null,null,null,null,""]
[null,null,null,null,""]
[null,null,null,null,""]
[null,null,null,null,""]
[null,null,null,null,""]
[null,null,null,null,""]
[null,null,null,null,""]
[null,null,null,null,""]
[null,null,null,null,""]
[null,null,null,null,""]
[null,null,null,null,""]
[null,null,null,null,""]
[null,null,null,null,""]
[null,null,null,null,""]
[null,null,null,null,""]
[null,null,null,null,""]
[null,null,null,null,""]
[null,null,null,null,""]
[null,null,null,null,""]
[null,null,null,null,""]
[null,null,null,null,""]
[null,null,null,null,""]
[null,null,null,null,""]
[null,null,null,null,""]
[null,null,null,null,""]
[null,null,null,null,""]
[null,null,null,null,""]
[null,null,null,null,""]
[null,null,null,null,""]
[null,null,null,null,""]
[null,null,null,null,""]
[null,null,null,"Total Miles Traveled",{"$f":"SUM('PAGE 1:PAGE 4'!E9:E48)","v":0}]
[null,null,null," Reimbursement Rate ","       x           .585"]
["PREPARED BY:","DATE",null,"Total Reimbursement Amount",{"$f":"ROUND(E49*0.585,2)","v":0}]
[]
[]
[]
["APPROVED BY:","DATE",null,"FUND TO BE PAID FROM:"]

{"sheet":"PAGE 2","index":1,"n_rows":50,"n_cols":8,"rows_kept":50,"cut":false,"hidden":false,"merged":[[49,0,49,2],[0,0,0,4],[1,0,1,4],[2,0,2,4],[3,0,3,4],[4,0,4,4]]}
["AMITE COUNTY SCHOOL DISTRICT "]
["IN-DISTRICT TRAVEL EXPENSE IN PERSONAL VEHICLE (PAGE 2)"]
["(DO NOT USE THIS FORM FOR TRAVEL OUTSIDE OF THE DISTRICT. YOU MUST FILL OUT A \"BEFORE\" FORM)"]
["Please refer to the district mileage chart for the correct mileage information"]
["Revised 01/01/2020"]
["EMPLOYEE'S NAME:",null,"MONTH OF TRAVEL:"]
[]
["DATE OF TRAVEL","STARTING POINT","DESTINATION","PURPOSE OF TRIP","SCHOOL BUSINESS MILES TRAVELED"]
[null,null,null,null,{"$f":"IF(AND(B9=\"CENTRAL OFFICE\",C9=\"ACHS/VOTECH\"),2,IF(AND(B9=\"CENTRAL OFFICE\",C9=\"ACES\"),4,IF(AND(B9=\"CENTRAL OFFICE\",C9=\"BUS LOT\"),3,IF(AND(B9=\"CENTRAL OFFICE\",C9=\"POST OFFICE\"),2,IF(AND(B9=\"CENTRAL OFFICE\",C9=\"BANK\"),2,IF(AND(B9=\"ACHS/VOTECH\",C9=\"CENTRAL OFFICE\"),2,IF(AND(B9=\"ACHS/VOTECH\",C9=\"ACES\"),4,IF(AND(B9=\"ACHS/VOTECH\",C9=\"BUS LOT\"),\"NOT AVALIABLE\",IF(AND(B9=\"ACHS/VOTECH\",C9=\"POST OFFICE\"),2,IF(AND(B9=\"ACHS/VOTECH\",C9=\"BANK\"),2,IF(AND(B9=\"ACES\",C9=\"CENTRAL OFFICE\"),4,IF(AND(B9=\"ACES\",C9=\"ACHS/VOTECH\"),4,IF(AND(B9=\"ACES\",C9=\"BUS LOT\"),\"NOT AVAILABLE\",IF(AND(B9=\"ACES\",C9=\"POST OFFICE\"),4,IF(AND(B9=\"ACES\",C9=\"BANK\"),4,IF(AND(B9=\"BUS LOT\",C9=\"CENTRAL OFFICE\"),3,IF(AND(B9=\"BUS LOT\",C9=\"ACHS/VOTECH\"),\"NOT AVAILABLE\",IF(AND(B9=\"BUS LOT\",C9=\"ACES\"),\"NOT AVAILABLE\",IF(AND(B9=\"BUS LOT\",C9=\"POST OFFICE\"),\"NOT AVAILABLE\",IF(AND(B9=\"BUS LOT\",C9=\"BANK\"),\"NOT AVAILABLE\",IF(AND(B9=\"POST OFFICE\",C9=\"CENTRAL OFFICE\"),2,IF(AND(B9=\"POST OFFICE\",C9=\"ACHS/VOTECH\"),2,IF(AND(B9=\"POST OFFICE\",C9=\"ACES\"),4,IF(AND(B9=\"POST OFFICE\",C9=\"BUS LOT\"),\"NOT AVAILABLE\",IF(AND(B9=\"POST OFFICE\",C9=\"BANK\"),\"NOT AVAILABLE\",IF(AND(B9=\"BANK\",C9=\"ACHS/VOTECH\"),1,IF(AND(B9=\"BANK\",C9=\"ACES\"),4,IF(AND(B9=\"BANK\",C9=\"BUS LOT\"),\"NOT AVAILABLE\",IF(AND(B9=\"BANK\",C9=\"POST OFFICE\"),\"NOT AVAILABLE\",IF(AND(B9=\"\",C9=\"\"),\"\",IF(B9=C9,0)))))))))))))))))))))))))))))))","v":""},null,null,"CENTRAL OFFICE"]
[null,null,null,null,{"$f":"IF(AND(B10=\"CENTRAL OFFICE\",C10=\"ACHS/VOTECH\"),2,IF(AND(B10=\"CENTRAL OFFICE\",C10=\"ACES\"),3,IF(AND(B10=\"CENTRAL OFFICE\",C10=\"BUS LOT\"),3,IF(AND(B10=\"CENTRAL OFFICE\",C10=\"POST OFFICE\"),2,IF(AND(B10=\"CENTRAL OFFICE\",C10=\"BANK\"),2,IF(AND(B10=\"ACHS/VOTECH\",C10=\"CENTRAL OFFICE\"),2,IF(AND(B10=\"ACHS/VOTECH\",C10=\"ACES\"),3,IF(AND(B10=\"ACHS/VOTECH\",C10=\"BUS LOT\"),\"NOT AVALIABLE\",IF(AND(B10=\"ACHS/VOTECH\",C10=\"POST OFFICE\"),2,IF(AND(B10=\"ACHS/VOTECH\",C10=\"BANK\"),1,IF(AND(B10=\"ACES\",C10=\"CENTRAL OFFICE\"),3,IF(AND(B10=\"ACES\",C10=\"ACHS/VOTECH\"),3,IF(AND(B10=\"ACES\",C10=\"BUS LOT\"),\"NOT AVAILABLE\",IF(AND(B10=\"ACES\",C10=\"POST OFFICE\"),4,IF(AND(B10=\"ACES\",C10=\"BANK\"),4,IF(AND(B10=\"BUS LOT\",C10=\"CENTRAL OFFICE\"),3,IF(AND(B10=\"BUS LOT\",C10=\"ACHS/VOTECH\"),\"NOT AVAILABLE\",IF(AND(B10=\"BUS LOT\",C10=\"ACES\"),\"NOT AVAILABLE\",IF(AND(B10=\"BUS LOT\",C10=\"POST OFFICE\"),\"NOT AVAILABLE\",IF(AND(B10=\"BUS LOT\",C10=\"BANK\"),\"NOT AVAILABLE\",IF(AND(B10=\"POST OFFICE\",C10=\"CENTRAL OFFICE\"),2,IF(AND(B10=\"POST OFFICE\",C10=\"ACHS/VOTECH\"),2,IF(AND(B10=\"POST OFFICE\",C10=\"ACES\"),4,IF(AND(B10=\"POST OFFICE\",C10=\"BUS LOT\"),\"NOT AVAILABLE\",IF(AND(B10=\"POST OFFICE\",C10=\"BANK\"),\"NOT AVAILABLE\",IF(AND(B10=\"BANK\",C10=\"ACHS/VOTECH\"),1,IF(AND(B10=\"BANK\",C10=\"ACES\"),4,IF(AND(B10=\"BANK\",C10=\"BUS LOT\"),\"NOT AVAILABLE\",IF(AND(B10=\"BANK\",C10=\"POST OFFICE\"),\"NOT AVAILABLE\",IF(AND(B10=\"\",C10=\"\"),\"\",IF(B10=C10,0)))))))))))))))))))))))))))))))","v":""},null,null,"ACHS/VOTECH"]
[null,null,null,null,"",null,null,"ACES"]
[null,null,null,null,"",null,null,"BUS LOT"]
[null,null,null,null,"",null,null,"POST OFFICE"]
[null,null,null,null,"",null,null,"BANK"]
[null,null,null,null,""]
[null,null,null,null,""]
[null,null,null,null,""]
[null,null,null,null,""]
[null,null,null,null,""]
[null,null,null,null,""]
[null,null,null,null,""]
[null,null,null,null,""]
[null,null,null,null,""]
[null,null,null,null,""]
[null,null,null,null,""]
[null,null,null,null,""]
[null,null,null,null,""]
[null,null,null,null,""]
[null,null,null,null,""]
[null,null,null,null,""]
[null,null,null,null,""]
[null,null,null,null,""]
[null,null,null,null,""]
[null,null,null,null,""]
[null,null,null,null,""]
[null,null,null,null,""]
[null,null,null,null,""]
[null,null,null,null,""]
[null,null,null,null,""]
[null,null,null,null,""]
[null,null,null,null,""]
[null,null,null,null,""]
[null,null,null,null,""]
[null,null,null,null,""]
[null,null,null,null,""]
[null,null,null,null,""]
[null,null,null,null,""]
[null,null,null,null,""]
[]
["ALL MILAGE IS CALCULATED ON PAGE 1"]

{"sheet":"PAGE 3","index":2,"n_rows":50,"n_cols":8,"rows_kept":50,"cut":false,"hidden":false,"merged":[[49,0,49,2],[0,0,0,4],[1,0,1,4],[2,0,2,4],[3,0,3,4],[4,0,4,4]]}
["AMITE COUNTY SCHOOL DISTRICT "]
["IN-DISTRICT TRAVEL EXPENSE IN PERSONAL VEHICLE (PAGE 3)"]
["(DO NOT USE THIS FORM FOR TRAVEL OUTSIDE OF THE DISTRICT. YOU MUST FILL OUT A \"BEFORE\" FORM)"]
["Please refer to the district mileage chart for the correct mileage information"]
["Revised 01/01/2020"]
["EMPLOYEE'S NAME:",null,"MONTH OF TRAVEL:"]
[]
["DATE OF TRAVEL","STARTING POINT","DESTINATION","PURPOSE OF TRIP","SCHOOL BUSINESS MILES TRAVELED"]
[null,null,null,null,{"$f":"IF(AND(B9=\"CENTRAL OFFICE\",C9=\"ACHS/VOTECH\"),2,IF(AND(B9=\"CENTRAL OFFICE\",C9=\"ACES\"),4,IF(AND(B9=\"CENTRAL OFFICE\",C9=\"BUS LOT\"),3,IF(AND(B9=\"CENTRAL OFFICE\",C9=\"POST OFFICE\"),2,IF(AND(B9=\"CENTRAL OFFICE\",C9=\"BANK\"),2,IF(AND(B9=\"ACHS/VOTECH\",C9=\"CENTRAL OFFICE\"),2,IF(AND(B9=\"ACHS/VOTECH\",C9=\"ACES\"),4,IF(AND(B9=\"ACHS/VOTECH\",C9=\"BUS LOT\"),\"NOT AVALIABLE\",IF(AND(B9=\"ACHS/VOTECH\",C9=\"POST OFFICE\"),2,IF(AND(B9=\"ACHS/VOTECH\",C9=\"BANK\"),2,IF(AND(B9=\"ACES\",C9=\"CENTRAL OFFICE\"),4,IF(AND(B9=\"ACES\",C9=\"ACHS/VOTECH\"),4,IF(AND(B9=\"ACES\",C9=\"BUS LOT\"),\"NOT AVAILABLE\",IF(AND(B9=\"ACES\",C9=\"POST OFFICE\"),4,IF(AND(B9=\"ACES\",C9=\"BANK\"),4,IF(AND(B9=\"BUS LOT\",C9=\"CENTRAL OFFICE\"),3,IF(AND(B9=\"BUS LOT\",C9=\"ACHS/VOTECH\"),\"NOT AVAILABLE\",IF(AND(B9=\"BUS LOT\",C9=\"ACES\"),\"NOT AVAILABLE\",IF(AND(B9=\"BUS LOT\",C9=\"POST OFFICE\"),\"NOT AVAILABLE\",IF(AND(B9=\"BUS LOT\",C9=\"BANK\"),\"NOT AVAILABLE\",IF(AND(B9=\"POST OFFICE\",C9=\"CENTRAL OFFICE\"),2,IF(AND(B9=\"POST OFFICE\",C9=\"ACHS/VOTECH\"),2,IF(AND(B9=\"POST OFFICE\",C9=\"ACES\"),4,IF(AND(B9=\"POST OFFICE\",C9=\"BUS LOT\"),\"NOT AVAILABLE\",IF(AND(B9=\"POST OFFICE\",C9=\"BANK\"),\"NOT AVAILABLE\",IF(AND(B9=\"BANK\",C9=\"ACHS/VOTECH\"),1,IF(AND(B9=\"BANK\",C9=\"ACES\"),4,IF(AND(B9=\"BANK\",C9=\"BUS LOT\"),\"NOT AVAILABLE\",IF(AND(B9=\"BANK\",C9=\"POST OFFICE\"),\"NOT AVAILABLE\",IF(AND(B9=\"\",C9=\"\"),\"\",IF(B9=C9,0)))))))))))))))))))))))))))))))","v":""},null,null,"CENTRAL OFFICE"]
[null,null,null,null,{"$f":"IF(AND(B10=\"CENTRAL OFFICE\",C10=\"ACHS/VOTECH\"),2,IF(AND(B10=\"CENTRAL OFFICE\",C10=\"ACES\"),3,IF(AND(B10=\"CENTRAL OFFICE\",C10=\"BUS LOT\"),3,IF(AND(B10=\"CENTRAL OFFICE\",C10=\"POST OFFICE\"),2,IF(AND(B10=\"CENTRAL OFFICE\",C10=\"BANK\"),2,IF(AND(B10=\"ACHS/VOTECH\",C10=\"CENTRAL OFFICE\"),2,IF(AND(B10=\"ACHS/VOTECH\",C10=\"ACES\"),3,IF(AND(B10=\"ACHS/VOTECH\",C10=\"BUS LOT\"),\"NOT AVALIABLE\",IF(AND(B10=\"ACHS/VOTECH\",C10=\"POST OFFICE\"),2,IF(AND(B10=\"ACHS/VOTECH\",C10=\"BANK\"),1,IF(AND(B10=\"ACES\",C10=\"CENTRAL OFFICE\"),3,IF(AND(B10=\"ACES\",C10=\"ACHS/VOTECH\"),3,IF(AND(B10=\"ACES\",C10=\"BUS LOT\"),\"NOT AVAILABLE\",IF(AND(B10=\"ACES\",C10=\"POST OFFICE\"),4,IF(AND(B10=\"ACES\",C10=\"BANK\"),4,IF(AND(B10=\"BUS LOT\",C10=\"CENTRAL OFFICE\"),3,IF(AND(B10=\"BUS LOT\",C10=\"ACHS/VOTECH\"),\"NOT AVAILABLE\",IF(AND(B10=\"BUS LOT\",C10=\"ACES\"),\"NOT AVAILABLE\",IF(AND(B10=\"BUS LOT\",C10=\"POST OFFICE\"),\"NOT AVAILABLE\",IF(AND(B10=\"BUS LOT\",C10=\"BANK\"),\"NOT AVAILABLE\",IF(AND(B10=\"POST OFFICE\",C10=\"CENTRAL OFFICE\"),2,IF(AND(B10=\"POST OFFICE\",C10=\"ACHS/VOTECH\"),2,IF(AND(B10=\"POST OFFICE\",C10=\"ACES\"),4,IF(AND(B10=\"POST OFFICE\",C10=\"BUS LOT\"),\"NOT AVAILABLE\",IF(AND(B10=\"POST OFFICE\",C10=\"BANK\"),\"NOT AVAILABLE\",IF(AND(B10=\"BANK\",C10=\"ACHS/VOTECH\"),1,IF(AND(B10=\"BANK\",C10=\"ACES\"),4,IF(AND(B10=\"BANK\",C10=\"BUS LOT\"),\"NOT AVAILABLE\",IF(AND(B10=\"BANK\",C10=\"POST OFFICE\"),\"NOT AVAILABLE\",IF(AND(B10=\"\",C10=\"\"),\"\",IF(B10=C10,0)))))))))))))))))))))))))))))))","v":""},null,null,"ACHS/VOTECH"]
[null,null,null,null,"",null,null,"ACES"]
[null,null,null,null,"",null,null,"BUS LOT"]
[null,null,null,null,"",null,null,"POST OFFICE"]
[null,null,null,null,"",null,null,"BANK"]
[null,null,null,null,""]
[null,null,null,null,""]
[null,null,null,null,""]
[null,null,null,null,""]
[null,null,null,null,""]
[null,null,null,null,""]
[null,null,null,null,""]
[null,null,null,null,""]
[null,null,null,null,""]
[null,null,null,null,""]
[null,null,null,null,""]
[null,null,null,null,""]
[null,null,null,null,""]
[null,null,null,null,""]
[null,null,null,null,""]
[null,null,null,null,""]
[null,null,null,null,""]
[null,null,null,null,""]
[null,null,null,null,""]
[null,null,null,null,""]
[null,null,null,null,""]
[null,null,null,null,""]
[null,null,null,null,""]
[null,null,null,null,""]
[null,null,null,null,""]
[null,null,null,null,""]
[null,null,null,null,""]
[null,null,null,null,""]
[null,null,null,null,""]
[null,null,null,null,""]
[null,null,null,null,""]
[null,null,null,null,""]
[null,null,null,null,""]
[null,null,null,null,""]
[]
["ALL MILAGE IS CALCULATED ON PAGE 1"]

{"sheet":"PAGE 4","index":3,"n_rows":50,"n_cols":8,"rows_kept":50,"cut":false,"hidden":false,"merged":[[49,0,49,2],[0,0,0,4],[1,0,1,4],[2,0,2,4],[3,0,3,4],[4,0,4,4]]}
["AMITE COUNTY SCHOOL DISTRICT "]
["IN-DISTRICT TRAVEL EXPENSE IN PERSONAL VEHICLE (PAGE 4)"]
["(DO NOT USE THIS FORM FOR TRAVEL OUTSIDE OF THE DISTRICT. YOU MUST FILL OUT A \"BEFORE\" FORM)"]
["Please refer to the district mileage chart for the correct mileage information"]
["Revised 01/01/2020"]
["EMPLOYEE'S NAME:",null,"MONTH OF TRAVEL:"]
[]
["DATE OF TRAVEL","STARTING POINT","DESTINATION","PURPOSE OF TRIP","SCHOOL BUSINESS MILES TRAVELED"]
[null,null,null,null,{"$f":"IF(AND(B9=\"CENTRAL OFFICE\",C9=\"ACHS/VOTECH\"),2,IF(AND(B9=\"CENTRAL OFFICE\",C9=\"ACES\"),4,IF(AND(B9=\"CENTRAL OFFICE\",C9=\"BUS LOT\"),3,IF(AND(B9=\"CENTRAL OFFICE\",C9=\"POST OFFICE\"),2,IF(AND(B9=\"CENTRAL OFFICE\",C9=\"BANK\"),2,IF(AND(B9=\"ACHS/VOTECH\",C9=\"CENTRAL OFFICE\"),2,IF(AND(B9=\"ACHS/VOTECH\",C9=\"ACES\"),4,IF(AND(B9=\"ACHS/VOTECH\",C9=\"BUS LOT\"),\"NOT AVALIABLE\",IF(AND(B9=\"ACHS/VOTECH\",C9=\"POST OFFICE\"),2,IF(AND(B9=\"ACHS/VOTECH\",C9=\"BANK\"),2,IF(AND(B9=\"ACES\",C9=\"CENTRAL OFFICE\"),4,IF(AND(B9=\"ACES\",C9=\"ACHS/VOTECH\"),4,IF(AND(B9=\"ACES\",C9=\"BUS LOT\"),\"NOT AVAILABLE\",IF(AND(B9=\"ACES\",C9=\"POST OFFICE\"),4,IF(AND(B9=\"ACES\",C9=\"BANK\"),4,IF(AND(B9=\"BUS LOT\",C9=\"CENTRAL OFFICE\"),3,IF(AND(B9=\"BUS LOT\",C9=\"ACHS/VOTECH\"),\"NOT AVAILABLE\",IF(AND(B9=\"BUS LOT\",C9=\"ACES\"),\"NOT AVAILABLE\",IF(AND(B9=\"BUS LOT\",C9=\"POST OFFICE\"),\"NOT AVAILABLE\",IF(AND(B9=\"BUS LOT\",C9=\"BANK\"),\"NOT AVAILABLE\",IF(AND(B9=\"POST OFFICE\",C9=\"CENTRAL OFFICE\"),2,IF(AND(B9=\"POST OFFICE\",C9=\"ACHS/VOTECH\"),2,IF(AND(B9=\"POST OFFICE\",C9=\"ACES\"),4,IF(AND(B9=\"POST OFFICE\",C9=\"BUS LOT\"),\"NOT AVAILABLE\",IF(AND(B9=\"POST OFFICE\",C9=\"BANK\"),\"NOT AVAILABLE\",IF(AND(B9=\"BANK\",C9=\"ACHS/VOTECH\"),1,IF(AND(B9=\"BANK\",C9=\"ACES\"),4,IF(AND(B9=\"BANK\",C9=\"BUS LOT\"),\"NOT AVAILABLE\",IF(AND(B9=\"BANK\",C9=\"POST OFFICE\"),\"NOT AVAILABLE\",IF(AND(B9=\"\",C9=\"\"),\"\",IF(B9=C9,0)))))))))))))))))))))))))))))))","v":""},null,null,"CENTRAL OFFICE"]
[null,null,null,null,{"$f":"IF(AND(B10=\"CENTRAL OFFICE\",C10=\"ACHS/VOTECH\"),2,IF(AND(B10=\"CENTRAL OFFICE\",C10=\"ACES\"),3,IF(AND(B10=\"CENTRAL OFFICE\",C10=\"BUS LOT\"),3,IF(AND(B10=\"CENTRAL OFFICE\",C10=\"POST OFFICE\"),2,IF(AND(B10=\"CENTRAL OFFICE\",C10=\"BANK\"),2,IF(AND(B10=\"ACHS/VOTECH\",C10=\"CENTRAL OFFICE\"),2,IF(AND(B10=\"ACHS/VOTECH\",C10=\"ACES\"),3,IF(AND(B10=\"ACHS/VOTECH\",C10=\"BUS LOT\"),\"NOT AVALIABLE\",IF(AND(B10=\"ACHS/VOTECH\",C10=\"POST OFFICE\"),2,IF(AND(B10=\"ACHS/VOTECH\",C10=\"BANK\"),1,IF(AND(B10=\"ACES\",C10=\"CENTRAL OFFICE\"),3,IF(AND(B10=\"ACES\",C10=\"ACHS/VOTECH\"),3,IF(AND(B10=\"ACES\",C10=\"BUS LOT\"),\"NOT AVAILABLE\",IF(AND(B10=\"ACES\",C10=\"POST OFFICE\"),4,IF(AND(B10=\"ACES\",C10=\"BANK\"),4,IF(AND(B10=\"BUS LOT\",C10=\"CENTRAL OFFICE\"),3,IF(AND(B10=\"BUS LOT\",C10=\"ACHS/VOTECH\"),\"NOT AVAILABLE\",IF(AND(B10=\"BUS LOT\",C10=\"ACES\"),\"NOT AVAILABLE\",IF(AND(B10=\"BUS LOT\",C10=\"POST OFFICE\"),\"NOT AVAILABLE\",IF(AND(B10=\"BUS LOT\",C10=\"BANK\"),\"NOT AVAILABLE\",IF(AND(B10=\"POST OFFICE\",C10=\"CENTRAL OFFICE\"),2,IF(AND(B10=\"POST OFFICE\",C10=\"ACHS/VOTECH\"),2,IF(AND(B10=\"POST OFFICE\",C10=\"ACES\"),4,IF(AND(B10=\"POST OFFICE\",C10=\"BUS LOT\"),\"NOT AVAILABLE\",IF(AND(B10=\"POST OFFICE\",C10=\"BANK\"),\"NOT AVAILABLE\",IF(AND(B10=\"BANK\",C10=\"ACHS/VOTECH\"),1,IF(AND(B10=\"BANK\",C10=\"ACES\"),4,IF(AND(B10=\"BANK\",C10=\"BUS LOT\"),\"NOT AVAILABLE\",IF(AND(B10=\"BANK\",C10=\"POST OFFICE\"),\"NOT AVAILABLE\",IF(AND(B10=\"\",C10=\"\"),\"\",IF(B10=C10,0)))))))))))))))))))))))))))))))","v":""},null,null,"ACHS/VOTECH"]
[null,null,null,null,"",null,null,"ACES"]
[null,null,null,null,"",null,null,"BUS LOT"]
[null,null,null,null,"",null,null,"POST OFFICE"]
[null,null,null,null,"",null,null,"BANK"]
[null,null,null,null,""]
[null,null,null,null,""]
[null,null,null,null,""]
[null,null,null,null,""]
[null,null,null,null,""]
[null,null,null,null,""]
[null,null,null,null,""]
[null,null,null,null,""]
[null,null,null,null,""]
[null,null,null,null,""]
[null,null,null,null,""]
[null,null,null,null,""]
[null,null,null,null,""]
[null,null,null,null,""]
[null,null,null,null,""]
[null,null,null,null,""]
[null,null,null,null,""]
[null,null,null,null,""]
[null,null,null,null,""]
[null,null,null,null,""]
[null,null,null,null,""]
[null,null,null,null,""]
[null,null,null,null,""]
[null,null,null,null,""]
[null,null,null,null,""]
[null,null,null,null,""]
[null,null,null,null,""]
[null,null,null,null,""]
[null,null,null,null,""]
[null,null,null,null,""]
[null,null,null,null,""]
[null,null,null,null,""]
[null,null,null,null,""]
[null,null,null,null,""]
[]
["ALL MILAGE IS CALCULATED ON PAGE 1"]